bitfinex-derivatives/quotes_BTCF0:USTF0_20240923
["timestamp","ask_amount","ask_price","bid_price","bid_amount"]
[1727110357136,0.079053,63246.0,63245.0,0.27866121]
[1727110357318,0.079053,63246.0,63245.0,0.43866121]
[1727110357521,0.079053,63246.0,63245.0,0.34392743]
[1727110357721,0.001,63246.0,63245.0,0.34392743]
[1727110358329,0.001,63246.0,63245.0,0.42298043]
[1727110358633,0.001,63246.0,63245.0,0.54675488]
[1727110361034,0.001,63246.0,63245.0,0.54634052]
[1727110361722,0.001,63246.0,63245.0,0.62539352]
[1727110362235,0.0037,63259.0,63245.0,1.54159464]
[1727110362431,0.443529,63265.0,63264.0,0.079029]
[1727110362617,0.439829,63265.0,63264.0,0.14219979]
[1727110362820,0.439829,63265.0,63264.0,0.079029]
[1727110363021,0.079033,63261.0,63260.0,0.15800153]
[1727110363221,0.079033,63261.0,63260.0,0.079034]
[1727110363433,0.079033,63261.0,63260.0,0.1264004]
[1727110364332,0.447829,63265.0,63264.0,0.079029]
[1727110365725,0.461829,63265.0,63264.0,0.079029]
[1727110365925,0.453829,63265.0,63264.0,0.079029]
[1727110366631,0.461829,63265.0,63264.0,0.079029]
[1727110375032,0.079031,63263.0,63262.0,0.1421872]
[1727110375748,0.079033,63261.0,63255.0,0.07896753]
[1727110375933,0.158068,63260.0,63259.0,0.04734565]
[1727110376243,0.158068,63260.0,63251.0,0.07896753]
[1727110376244,0.079044,63252.0,63251.0,0.07896753]
[1727110376442,0.079044,63252.0,63250.0,0.07896753]
[1727110376443,0.3608,63252.0,63250.0,0.07896753]
[1727110376631,0.079047,63250.0,63249.0,0.15801553]
[1727110376827,0.079047,63250.0,63249.0,0.26116106]
[1727110377444,0.079049,63248.0,63247.0,0.07896753]
[1727110377742,0.079048,63249.0,63244.0,0.07896753]
[1727110377743,0.079051,63247.0,63244.0,0.07896753]
[1727110377941,0.079053,63245.0,63244.0,0.07896753]
[1727110378138,0.079054,63244.0,63243.0,0.08133925]
[1727110378338,0.079054,63244.0,63243.0,0.26353814]
[1727110378641,0.079051,63247.0,63246.0,0.079052]
[1727110378839,0.079051,63247.0,63246.0,0.12639929]
[1727110378840,0.080051,63247.0,63246.0,0.12639929]
[1727110379345,0.001,63247.0,63246.0,0.28639499]
[1727110379543,0.001,63247.0,63246.0,0.239052]
[1727110379746,0.002,63247.0,63246.0,0.239052]
[1727110380441,0.001,63247.0,63246.0,0.239052]
[1727110381838,0.0037,63258.0,63252.0,0.079044]
[1727110382041,0.079036,63259.0,63252.0,0.16]
[1727110382245,0.079036,63259.0,63255.0,0.04733423]
[1727110382448,0.079036,63259.0,63256.0,0.04733423]
[1727110382742,0.079036,63259.0,63255.0,0.04733423]
[1727110383237,0.079036,63259.0,63258.0,0.079037]
[1727110384147,0.079037,63258.0,63253.0,0.04733423]
[1727110384342,0.439843,63254.0,63253.0,0.079043]
[1727110384749,0.079043,63254.0,63253.0,0.12637723]
[1727110385249,0.079043,63254.0,63253.0,0.12638669]
[1727110385551,0.439843,63254.0,63253.0,0.12638669]
[1727110385748,0.080043,63254.0,63253.0,0.079043]
[1727110386446,0.001,63254.0,63253.0,0.079043]
[1727110386674,0.001,63254.0,63253.0,0.18170971]
[1727110387165,0.005,63254.0,63253.0,0.18170971]
[1727110387663,0.005,63254.0,63253.0,0.18170168]
[1727110389954,0.005,63254.0,63253.0,0.62154468]
[1727110390549,0.005,63254.0,63253.0,0.18170168]
[1727110391859,0.005,63254.0,63253.0,0.26074468]
[1727110392060,0.005,63254.0,63253.0,0.18170168]
[1727110392258,0.005,63254.0,63253.0,0.18166773]
[1727110392958,0.005,63254.0,63253.0,0.26071073]
[1727110393157,0.005,63254.0,63253.0,0.62151073]
[1727110393356,0.005,63254.0,63253.0,0.71622952]
[1727110393562,0.005,63254.0,63253.0,0.35542952]
[1727110393762,0.005,63254.0,63253.0,0.26071073]
[1727110395356,0.005,63254.0,63253.0,0.18166773]
[1727110395559,0.005,63254.0,63253.0,0.26071073]
[1727110395967,0.005,63254.0,63253.0,0.35542952]
[1727110396162,0.005,63254.0,63253.0,0.26071073]
[1727110396468,0.005,63254.0,63253.0,0.26062928]
[1727110399873,0.005,63254.0,63253.0,0.71614807]
[1727110400175,0.079033,63261.0,63260.0,0.079034]
[1727110400365,0.079033,63261.0,63260.0,0.15798137]
[1727110400764,0.079033,63261.0,63260.0,0.079034]
[1727110401166,0.090033,63261.0,63260.0,0.079034]
[1727110401668,0.11565753,63261.0,63260.0,0.079034]
[1727110402181,0.04062453,63261.0,63260.0,0.318068]
[1727110402369,0.015,63261.0,63260.0,0.757902]
[1727110403982,0.015,63261.0,63260.0,0.439834]
[1727110405382,0.015,63261.0,63260.0,0.079034]
[1727110405588,0.094033,63261.0,63260.0,0.079034]
[1727110405885,0.015,63261.0,63260.0,0.079034]
[1727110407096,0.094033,63261.0,63260.0,0.079034]
[1727110408693,0.094033,63261.0,63260.0,0.26000304]
[1727110409186,0.094033,63261.0,63260.0,0.18105567]
[1727110409884,0.094033,63261.0,63260.0,0.25998551]
[1727110410392,0.094033,63261.0,63260.0,0.18105567]
[1727110411181,0.094033,63261.0,63260.0,0.25998612]
[1727110411385,0.094033,63261.0,63260.0,0.18105567]
[1727110411580,0.015,63261.0,63260.0,0.26008967]
[1727110411781,0.015,63261.0,63260.0,0.32905567]
[1727110411985,0.015,63261.0,63260.0,0.40808967]
[1727110413287,0.015,63261.0,63260.0,0.42376742]
[1727110413786,0.015,63261.0,63260.0,0.32905567]
[1727110414097,0.015,63261.0,63260.0,0.42376742]
[1727110414685,0.015,63261.0,63260.0,0.32905567]
[1727110415085,0.015,63261.0,63260.0,0.40808967]
[1727110415286,0.015,63261.0,63260.0,1.00377418]
[1727110415786,0.07758771,63269.0,63268.0,0.079024]
[1727110415983,0.07758771,63270.0,63269.0,0.079023]
[1727110416199,0.07758771,63271.0,63270.0,0.079022]
[1727110416695,0.07758771,63271.0,63270.0,0.158044]
[1727110417088,0.00112001,63274.0,63273.0,0.079018]
[1727110417285,0.08128771,63280.0,63274.0,0.079017]
[1727110417486,0.07995871,63284.0,63279.0,0.16]
[1727110417695,0.0799639,63284.0,63283.0,0.079006]
[1727110418189,0.1589679,63284.0,63283.0,0.079006]
[1727110418389,0.10699062,63284.0,63283.0,0.079006]
[1727110418580,0.1589874,63284.0,63283.0,0.079006]
[1727110418782,0.1729874,63284.0,63283.0,0.079006]
[1727110419190,0.3329874,63284.0,63283.0,0.079006]
[1727110419384,0.258375,63284.0,63283.0,0.079006]
[1727110419583,0.098375,63284.0,63283.0,0.079006]
[1727110419783,0.019371,63284.0,63283.0,0.079006]
[1727110419989,0.017,63284.0,63283.0,0.079006]
[1727110420179,0.014,63284.0,63283.0,0.079006]
[1727110420378,0.096004,63284.0,63283.0,0.080006]
[1727110420696,0.017,63284.0,63283.0,0.080006]
[1727110421792,0.096004,63284.0,63283.0,0.080006]
[1727110427197,0.335008,63284.0,63283.0,0.001]
[1727110428192,0.079018,63275.0,63272.0,0.0037]
[1727110428400,0.616804,63284.0,63274.0,0.079017]
[1727110428401,0.3608,63276.0,63274.0,0.079017]
[1727110428589,0.0037,63283.0,63282.0,0.079007]
[1727110428799,0.3778,63284.0,63283.0,0.239006]
[1727110429010,0.3786,63284.0,63283.0,0.239006]
[1727110429505,0.3608,63284.0,63283.0,0.239006]
[1727110430206,0.3608,63284.0,63283.0,0.240006]
[1727110430207,0.3878,63284.0,63283.0,0.240006]
[1727110430902,0.45383355,63284.0,63283.0,0.240006]
[1727110431295,0.53283755,63284.0,63283.0,0.080006]
[1727110431799,0.17203755,63284.0,63283.0,0.080006]
[1727110433897,0.09303355,63284.0,63283.0,0.080006]
[1727110436198,0.17203755,63284.0,63283.0,0.080006]
[1727110436400,0.1316198,63284.0,63283.0,0.080006]
[1727110436601,0.17203723,63284.0,63283.0,0.080006]
[1727110438611,0.17205906,63284.0,63283.0,0.080006]
[1727110438904,0.106004,63284.0,63283.0,0.080006]
[1727110440511,0.106004,63284.0,63283.0,0.14297857]
[1727110440707,0.106004,63284.0,63283.0,0.080006]
[1727110441406,0.106004,63284.0,63283.0,0.14297857]
[1727110442406,0.027,63284.0,63283.0,0.240006]
[1727110443013,0.027,63284.0,63283.0,0.080006]
[1727110443609,0.106004,63284.0,63283.0,0.080006]
[1727110443814,0.106004,63284.0,63283.0,0.06410337]
[1727110444013,0.345008,63284.0,63283.0,0.06410337]
[1727110444207,0.345008,63284.0,63283.0,0.04832975]
[1727110444407,0.345008,63284.0,63283.0,0.001]
[1727110445502,0.345008,63284.0,63283.0,0.06410337]
[1727110445701,0.185008,63284.0,63283.0,0.06410337]
[1727110446204,0.106004,63284.0,63283.0,0.06410337]
[1727110446511,0.185008,63284.0,63283.0,0.001]
[1727110453913,0.42208593,63284.0,63283.0,0.001]
[1727110455826,0.34308193,63284.0,63283.0,0.080006]
[1727110456507,0.34313624,63284.0,63283.0,0.080006]
[1727110456707,0.42214024,63284.0,63283.0,0.001]
[1727110456909,0.158032,63275.0,63267.0,0.1388]
[1727110457118,0.079021,63271.0,63270.0,0.079021]
[1727110457412,0.079024,63268.0,63267.0,0.1388]
[1727110457611,0.19232442,63268.0,63267.0,0.1388]
[1727110457814,0.3172835,63268.0,63267.0,0.079026]
[1727110458023,0.19185306,63268.0,63267.0,0.079026]
[1727110458316,0.11278217,63268.0,63267.0,0.079026]
[1727110458518,0.20398008,63271.0,63270.0,0.079022]
[1727110458721,0.19641033,63271.0,63270.0,0.079022]
[1727110458919,0.11738933,63271.0,63270.0,0.079022]
[1727110459427,0.24230014,63271.0,63270.0,0.079022]
[1727110459822,0.11238933,63271.0,63270.0,0.079022]
[1727110460015,0.06577199,63271.0,63270.0,0.079022]
[1727110461027,0.12492521,63272.0,63271.0,0.079021]
[1727110461217,0.12492521,63272.0,63271.0,0.47951287]
[1727110461413,0.12492521,63272.0,63271.0,0.54531287]
[1727110462116,0.14892521,63272.0,63271.0,0.54631287]
[1727110463225,0.14492521,63272.0,63271.0,0.54631287]
[1727110463947,0.13092521,63272.0,63271.0,0.54531287]
[1727110464119,0.14392521,63272.0,63271.0,0.54631287]
[1727110464622,0.019,63272.0,63271.0,0.54631287]
[1727110465219,0.019,63272.0,63271.0,0.284421]
[1727110465428,0.019,63272.0,63271.0,0.38619906]
[1727110465724,0.019,63272.0,63271.0,0.32039906]
[1727110465923,0.019,63272.0,63271.0,0.18179906]
[1727110466118,0.019,63272.0,63271.0,0.15894198]
[1727110466316,0.098019,63272.0,63271.0,0.15894198]
[1727110466511,0.098019,63272.0,63271.0,0.18191418]
[1727110466923,0.019,63272.0,63271.0,0.34191418]
[1727110468116,0.019,63272.0,63271.0,0.42093518]
[1727110468532,0.019,63272.0,63271.0,0.51563176]
[1727110468832,0.019,63272.0,63271.0,0.59465276]
[1727110469525,0.019,63272.0,63271.0,0.49995618]
[1727110469828,0.443511,63279.0,63278.0,0.079012]
[1727110470021,0.439811,63279.0,63278.0,0.079012]
[1727110471026,0.453811,63279.0,63278.0,0.080012]
[1727110471533,0.3878,63279.0,63278.0,0.080012]
[1727110471729,0.3878,63279.0,63278.0,0.159024]
[1727110471931,0.3878,63279.0,63278.0,0.3087432]
[1727110472134,0.0037,63287.0,63285.0,0.079002]
[1727110472329,0.0037,63294.0,63286.0,0.77992459]
[1727110472633,0.504967,63298.0,63291.0,0.16]
[1727110472930,0.504087,63298.0,63295.0,0.06312129]
[1727110473840,0.504087,63298.0,63297.0,0.078988]
[1727110474535,0.4251,63298.0,63297.0,0.078988]
[1727110475134,0.0763,63298.0,63297.0,0.080988]
[1727110475926,0.12692055,63298.0,63297.0,0.03918805]
[1727110476127,0.18155878,63298.0,63297.0,0.03918805]
[1727110476433,0.12692055,63298.0,63297.0,0.11817605]
[1727110476642,0.18155878,63298.0,63297.0,0.11817605]
[1727110476935,0.18155878,63298.0,63297.0,0.03918805]
[1727110477328,0.23474601,63298.0,63297.0,0.03918805]
[1727110477536,0.18155878,63298.0,63297.0,0.03918805]
[1727110478340,0.25049476,63298.0,63297.0,0.03918805]
[1727110478543,0.18155878,63298.0,63297.0,0.03918805]
[1727110479341,0.18099135,63298.0,63297.0,0.03918805]
[1727110480137,0.18099135,63298.0,63297.0,0.05473003]
[1727110480337,0.23436177,63298.0,63297.0,0.05473003]
[1727110480743,0.33658026,63298.0,63297.0,0.05473003]
[1727110480928,1e-08,63299.0,63297.0,1.12869003]
[1727110481126,0.1400534,63303.0,63302.0,0.078982]
[1727110481431,0.0672,63309.0,63308.0,0.078975]
[1727110481632,0.12176784,63309.0,63308.0,0.238975]
[1727110481929,0.05456784,63309.0,63308.0,0.47629464]
[1727110482831,0.05456784,63309.0,63308.0,0.55526964]
[1727110483743,0.04863976,63309.0,63308.0,0.55626964]
[1727110483943,0.17155685,63314.0,63308.0,0.55626964]
[1727110484146,0.1315,63316.0,63308.0,0.55626964]
[1727110484444,0.1315,63316.0,63308.0,0.47729464]
[1727110484633,0.078973,63309.0,63308.0,0.47729464]
[1727110485040,0.157946,63309.0,63308.0,0.3618]
[1727110486128,0.157946,63309.0,63308.0,0.3628]
[1727110486333,0.157946,63309.0,63308.0,0.3618]
[1727110486534,0.157946,63309.0,63308.0,0.3628]
[1727110490938,0.28557462,63309.0,63308.0,0.3628]
[1727110491441,0.42537858,63309.0,63308.0,0.3628]
[1727110491735,0.28557462,63309.0,63308.0,0.23636427]
[1727110492045,0.28557462,63309.0,63308.0,0.002]
[1727110492250,0.34282844,63309.0,63308.0,0.002]
[1727110492743,0.26385544,63309.0,63308.0,0.080975]
[1727110493136,0.25831054,63309.0,63308.0,0.080975]
[1727110493740,0.20105672,63309.0,63308.0,0.080975]
[1727110494248,0.20105672,63309.0,63308.0,0.16]
[1727110494445,0.20105672,63309.0,63308.0,0.238975]
[1727110495451,0.12208372,63309.0,63308.0,0.238975]
[1727110497449,0.20105672,63309.0,63308.0,0.238975]
[1727110497747,0.17933754,63309.0,63308.0,0.238975]
[1727110498153,0.25831054,63309.0,63308.0,0.238975]
[1727110499146,0.078973,63309.0,63308.0,0.238975]
[1727110500447,0.078973,63309.0,63308.0,0.188975]
[1727110500835,0.078973,63309.0,63308.0,0.078975]
[1727110501246,0.11,63309.0,63305.0,0.078978]
[1727110501449,0.3608,63310.0,63302.0,0.439782]
[1727110501450,0.078981,63303.0,63302.0,0.439782]
[1727110501641,0.267962,63303.0,63302.0,0.3608]
[1727110501951,0.078986,63299.0,63298.0,0.09500109]
[1727110502871,0.078982,63302.0,63301.0,0.078982]
[1727110504142,0.078983,63301.0,63298.0,0.111]
[1727110504341,0.078983,63301.0,63298.0,0.001]
[1727110504342,0.078986,63299.0,63298.0,0.001]
[1727110504948,0.078992,63294.0,63293.0,0.3608]
[1727110505151,0.078992,63294.0,63293.0,0.42391269]
[1727110506055,0.078992,63294.0,63293.0,0.42491269]
[1727110506257,0.55274232,63294.0,63293.0,0.001]
[1727110506463,0.55274232,63294.0,63293.0,0.002]
[1727110506464,0.38937322,63294.0,63293.0,0.002]
[1727110506660,0.157994,63290.0,63289.0,0.19619031]
[1727110506851,0.079003,63285.0,63284.0,0.00237023]
[1727110507052,0.27459911,63285.0,63284.0,0.00237023]
[1727110507252,0.22839522,63285.0,63284.0,0.00237023]
[1727110508165,0.38839522,63285.0,63284.0,0.00237023]
[1727110508561,0.38839522,63285.0,63284.0,0.00337023]
[1727110509556,0.43689121,63285.0,63284.0,0.00337023]
[1727110509863,0.43889121,63285.0,63284.0,0.00237023]
[1727110510752,0.57930809,63285.0,63284.0,0.00337023]
[1727110511263,0.57930809,63285.0,63276.0,0.0037]
[1727110511264,0.158026,63277.0,63276.0,0.0037]
[1727110511472,0.67021595,63277.0,63269.0,0.079022]
[1727110511759,0.67021595,63277.0,63268.0,0.0037]
[1727110511760,0.3608,63271.0,63265.0,0.0060708]
[1727110511953,0.3608,63271.0,63265.0,0.0023708]
[1727110511954,0.079027,63266.0,63265.0,0.0023708]
[1727110512566,0.079027,63266.0,63265.0,0.0813988]
[1727110513264,0.079027,63266.0,63265.0,0.0953988]
[1727110514062,0.082027,63266.0,63265.0,0.0953988]
[1727110514261,0.04249032,63266.0,63265.0,0.0953988]
[1727110514660,0.04249032,63266.0,63265.0,0.0843988]
[1727110515062,0.04249032,63266.0,63265.0,0.14720862]
[1727110515268,0.04249032,63266.0,63265.0,0.0843988]
[1727110516373,0.04249032,63266.0,63265.0,0.003]
[1727110518063,0.04249032,63266.0,63265.0,0.082028]
[1727110521865,0.04249032,63266.0,63265.0,0.003]
[1727110522062,0.079033,63261.0,63260.0,0.0037]
[1727110522262,0.16,63261.0,63256.0,0.079038]
[1727110522469,0.079038,63257.0,63256.0,0.079038]
[1727110523973,0.079038,63257.0,63256.0,0.084038]
[1727110524177,0.079038,63257.0,63256.0,0.005]
[1727110524977,0.079038,63257.0,63256.0,0.084039]
[1727110525677,0.080038,63257.0,63256.0,0.096039]
[1727110528280,0.001,63257.0,63256.0,0.096039]
[1727110529198,0.1367,63260.0,63256.0,0.017]
[1727110529489,0.1367,63260.0,63258.0,0.079036]
[1727110529490,0.079036,63259.0,63258.0,0.079036]
[1727110529870,0.1367,63260.0,63259.0,0.079036]
[1727110530269,0.145234,63260.0,63259.0,0.079036]
[1727110530685,0.0662,63260.0,63259.0,0.079036]
[1727110531177,0.3608,63262.0,63261.0,0.079033]
[1727110531398,0.3608,63262.0,63261.0,0.14184578]
[1727110531687,0.3608,63262.0,63261.0,0.22087878]
[1727110532185,0.3608,63262.0,63261.0,0.158066]
[1727110532685,0.3618,63262.0,63261.0,0.165066]
[1727110533186,0.001,63262.0,63261.0,0.3529231]
[1727110533570,0.001,63262.0,63261.0,0.2740061]
[1727110537088,0.001,63262.0,63261.0,0.40402015]
[1727110537388,0.001,63262.0,63261.0,0.48305315]
[1727110538488,0.001,63262.0,63261.0,0.4832166]
[1727110539089,0.0060717,63270.0,63269.0,0.079023]
[1727110539289,0.0023717,63270.0,63269.0,0.1881114]
[1727110540176,0.0813937,63270.0,63269.0,0.1881114]
[1727110540380,0.2413937,63270.0,63269.0,0.1881114]
[1727110540582,0.2443937,63270.0,63269.0,0.1891114]
[1727110540793,0.2453937,63270.0,63269.0,0.1891114]
[1727110541990,0.2443937,63270.0,63269.0,0.1891114]
[1727110542384,0.1943937,63270.0,63269.0,0.1901114]
[1727110542777,0.1153717,63270.0,63269.0,0.1901114]
[1727110543183,0.1153717,63270.0,63269.0,0.19033082]
[1727110543382,0.1123717,63270.0,63269.0,0.19033082]
[1727110543577,0.1153717,63270.0,63269.0,0.19033082]
[1727110543982,0.1153717,63270.0,63269.0,0.18833082]
[1727110544288,0.1153717,63270.0,63269.0,0.080023]
[1727110544681,0.1153717,63270.0,63269.0,0.081023]
[1727110544879,0.1943937,63270.0,63269.0,0.081023]
[1727110545299,0.1943937,63270.0,63269.0,0.080023]
[1727110545695,0.003,63270.0,63269.0,0.708869]
[1727110546393,0.0938863,63275.0,63274.0,0.158034]
[1727110546584,0.0938863,63275.0,63274.0,0.268034]
[1727110546788,0.3608,63279.0,63278.0,0.079012]
[1727110547100,0.39287798,63279.0,63278.0,0.079012]
[1727110548093,0.39287798,63279.0,63278.0,0.080012]
[1727110548094,0.39587798,63279.0,63278.0,0.080012]
[1727110548679,0.03507798,63279.0,63278.0,0.080012]
[1727110548885,0.03607798,63279.0,63278.0,0.080012]
[1727110549686,0.03307798,63279.0,63278.0,0.079012]
[1727110549995,0.03628953,63279.0,63278.0,0.080012]
[1727110550201,0.03628502,63279.0,63278.0,0.080012]
[1727110551293,0.03628502,63279.0,63278.0,0.15894267]
[1727110551294,0.083011,63279.0,63278.0,0.15894267]
[1727110551984,0.083011,63279.0,63278.0,0.080012]
[1727110554283,0.004,63279.0,63278.0,0.080012]
[1727110554889,0.004,63279.0,63278.0,0.15894267]
[1727110555496,0.004,63279.0,63278.0,0.080012]
[1727110555698,0.004,63279.0,63278.0,0.15894267]
[1727110555882,0.004,63279.0,63278.0,0.080012]
[1727110556495,0.004,63279.0,63278.0,0.15794267]
[1727110556891,0.003,63279.0,63278.0,0.15894267]
[1727110557400,0.0638,63282.0,63281.0,0.079008]
[1727110557595,0.0638,63282.0,63281.0,0.26611839]
[1727110557788,0.0638,63282.0,63281.0,0.2661254]
[1727110557990,0.0638,63282.0,63281.0,0.1873333]
[1727110558597,0.0638,63282.0,63281.0,0.2663413]
[1727110559098,0.02427477,63282.0,63281.0,0.2663413]
[1727110559301,0.079003,63285.0,63284.0,0.079004]
[1727110560596,0.082003,63285.0,63284.0,0.080004]
[1727110560791,0.088003,63285.0,63284.0,0.080004]
[1727110561401,0.009,63285.0,63284.0,0.159008]
[1727110561909,0.009,63285.0,63284.0,0.519808]
[1727110562090,0.009,63285.0,63284.0,0.70630283]
[1727110562405,0.009,63285.0,63284.0,0.59859836]
[1727110562595,0.009,63285.0,63284.0,0.78527745]
[1727110562794,0.009,63285.0,63284.0,0.70648709]
[1727110563391,0.009,63285.0,63284.0,0.26668309]
[1727110566392,0.04225305,63285.0,63284.0,0.159008]
[1727110566592,0.0809383,63285.0,63284.0,0.159008]
[1727110566802,0.19816937,63285.0,63284.0,0.159008]
[1727110567298,0.28534396,63285.0,63284.0,0.159008]
[1727110567897,0.20843064,63285.0,63279.0,0.079011]
[1727110568092,0.30055111,63280.0,63275.0,0.3608]
[1727110568294,0.26097875,63279.0,63275.0,0.3608]
[1727110568500,0.12042764,63278.0,63275.0,0.3608]
[1727110568702,0.14055111,63279.0,63276.0,0.079014]
[1727110568703,0.0719383,63277.0,63276.0,0.079014]
[1727110569004,0.12043466,63277.0,63276.0,0.079014]
[1727110569190,0.19944766,63277.0,63276.0,0.079014]
[1727110569397,0.12043466,63277.0,63271.0,0.00237068]
[1727110569711,0.14058032,63272.0,63271.0,0.08139168]
[1727110569899,0.17336508,63272.0,63271.0,0.08139168]
[1727110570205,0.11997647,63272.0,63271.0,0.08139168]
[1727110570903,0.12097647,63272.0,63271.0,0.08939168]
[1727110571898,0.11997647,63272.0,63271.0,0.08239168]
[1727110572095,0.11997647,63272.0,63271.0,0.08639168]
[1727110572909,0.12497647,63272.0,63271.0,0.08539168]
[1727110573504,0.12497647,63272.0,63271.0,0.08139168]
[1727110573802,0.12497647,63272.0,63271.0,0.08339168]
[1727110574300,0.17150795,63273.0,63272.0,0.079019]
[1727110574502,0.17150795,63273.0,63272.0,0.39501962]
[1727110574705,0.17150795,63273.0,63272.0,0.86913962]
[1727110574909,0.17150795,63273.0,63272.0,0.39501962]
[1727110575094,0.17150795,63273.0,63272.0,0.50539556]
[1727110575907,0.17150795,63273.0,63272.0,0.39501962]
[1727110576105,0.17150795,63273.0,63272.0,0.65492587]
[1727110576312,0.079009,63281.0,63280.0,0.079009]
[1727110576500,0.079009,63281.0,63280.0,0.18711736]
[1727110576701,0.079009,63281.0,63280.0,0.28180792]
[1727110576901,0.079009,63281.0,63280.0,0.18711736]
[1727110577799,0.081009,63281.0,63280.0,0.18711736]
[1727110578905,0.081009,63281.0,63280.0,0.18811736]
[1727110579208,0.081009,63281.0,63280.0,0.080009]
[1727110579397,0.081009,63281.0,63280.0,0.26704342]
[1727110579398,0.002,63281.0,63280.0,0.26704342]
[1727110579600,0.002,63281.0,63280.0,0.31677563]
[1727110580599,0.081008,63281.0,63280.0,0.31677563]
[1727110580999,0.081008,63281.0,63280.0,0.18803442]
[1727110581416,0.19046379,63281.0,63280.0,0.080009]
[1727110581612,0.22346753,63281.0,63280.0,0.080009]
[1727110582715,0.11401174,63281.0,63280.0,0.080009]
[1727110583102,0.15270206,63281.0,63280.0,0.080009]
[1727110583510,0.31270206,63281.0,63280.0,0.001]
[1727110583901,0.39158319,63281.0,63280.0,0.001]
[1727110584914,0.31257519,63281.0,63280.0,0.001]
[1727110585715,0.3610733,63281.0,63280.0,0.080009]
[1727110588211,0.4400813,63281.0,63280.0,0.001]
[1727110588410,0.079017,63274.0,63273.0,0.17371385]
[1727110588716,0.079017,63274.0,63273.0,0.18733987]
[1727110589316,0.158034,63274.0,63273.0,0.10832187]
[1727110589704,0.158034,63274.0,63273.0,0.18722826]
[1727110589908,0.158034,63274.0,63273.0,0.19222826]
[1727110590413,0.158034,63274.0,63273.0,0.19229371]
[1727110590615,0.158034,63274.0,63273.0,0.08390639]
[1727110590816,0.158034,63274.0,63273.0,0.18730456]
[1727110591006,0.161034,63274.0,63273.0,0.07890639]
[1727110591213,0.158036,63273.0,63272.0,0.07890639]
[1727110591406,0.239018,63273.0,63272.0,0.18732474]
[1727110591812,0.318036,63273.0,63272.0,0.18732474]
[1727110592016,0.239018,63273.0,63272.0,0.18732474]
[1727110592209,0.318036,63273.0,63272.0,0.18732474]
[1727110592416,0.158038,63272.0,63271.0,0.07889685]
[1727110592612,0.158038,63272.0,63271.0,0.18730618]
[1727110593619,0.158038,63272.0,63271.0,0.07889685]
[1727110593820,0.159038,63272.0,63271.0,0.07889685]
[1727110594412,0.080019,63272.0,63271.0,0.26729517]
[1727110594611,0.080019,63272.0,63271.0,0.10937732]
[1727110594817,0.001,63272.0,63271.0,0.18839832]
[1727110595209,0.001,63272.0,63271.0,0.36211517]
[1727110595521,0.079016,63275.0,63274.0,0.079017]
[1727110595730,0.079016,63275.0,63274.0,0.18739432]
[1727110596419,0.11181536,63275.0,63274.0,0.079017]
[1727110596920,0.11181536,63275.0,63274.0,0.081017]
[1727110597215,0.03279936,63275.0,63274.0,0.081017]
[1727110597619,0.03279936,63275.0,63274.0,0.080017]
[1727110598039,0.03279936,63275.0,63274.0,0.079017]
[1727110598320,0.079013,63277.0,63276.0,0.079014]
[1727110598622,0.11182566,63277.0,63276.0,0.079014]
[1727110600321,0.11182566,63277.0,63276.0,0.081014]
[1727110600920,0.03281266,63277.0,63276.0,0.080014]
[1727110601919,0.10951097,63277.0,63276.0,0.080014]
[1727110602123,0.14232363,63277.0,63276.0,0.080014]
[1727110603219,0.07146991,63277.0,63276.0,0.001]
[1727110603418,0.44061,63280.0,63279.0,0.079011]
[1727110603621,0.43981,63280.0,63279.0,0.26610404]
[1727110604213,0.40027963,63280.0,63279.0,0.26610404]
[1727110604922,0.40027963,63280.0,63279.0,0.26710404]
[1727110605923,0.40227963,63280.0,63279.0,0.26710404]
[1727110606119,0.40227963,63280.0,63279.0,0.080011]
[1727110606326,0.59128963,63280.0,63279.0,0.001]
[1727110607029,0.158028,63276.0,63275.0,0.07890862]
[1727110607323,0.158036,63273.0,63272.0,0.07890862]
[1727110607528,0.268036,63273.0,63272.0,0.18710715]
[1727110607717,0.268036,63273.0,63272.0,0.07890862]
[1727110608327,0.318036,63273.0,63272.0,0.07890862]
[1727110609119,0.158038,63272.0,63271.0,0.07890862]
[1727110609317,0.745738,63272.0,63271.0,0.18713448]
[1727110609931,0.745738,63272.0,63271.0,0.10822586]
[1727110610127,0.746738,63272.0,63271.0,0.18714318]
[1727110610334,0.746738,63272.0,63271.0,0.10822586]
[1727110612019,0.748738,63272.0,63271.0,0.10922586]
[1727110613648,0.669719,63272.0,63271.0,0.10922586]
[1727110613940,0.442819,63272.0,63271.0,0.18824686]
[1727110614738,0.003,63272.0,63271.0,0.34824686]
[1727110614941,0.003,63272.0,63271.0,0.31710405]
[1727110616836,0.079016,63275.0,63271.0,0.24008305]
[1727110617037,0.079016,63275.0,63274.0,0.079017]
[1727110617237,0.079016,63275.0,63274.0,0.29531487]
[1727110617443,0.079016,63275.0,63274.0,0.18708901]
[1727110618337,0.079016,63275.0,63274.0,0.079017]
[1727110618338,0.1119654,63275.0,63274.0,0.079017]
[1727110618538,0.15166136,63275.0,63274.0,0.080017]
[1727110619435,0.30146906,63275.0,63274.0,0.001]
[1727110619749,0.27918412,63275.0,63274.0,0.002]
[1727110619937,0.35579688,63275.0,63274.0,0.002]
[1727110620932,0.23167883,63275.0,63274.0,0.001]
[1727110623349,0.28018437,63275.0,63274.0,0.001]
[1727110624556,0.35920037,63275.0,63274.0,0.001]
[1727110624737,0.158052,63267.0,63266.0,0.0037]
[1727110624941,0.079027,63266.0,63265.0,0.079028]
[1727110625239,0.22134531,63266.0,63265.0,0.079028]
[1727110625747,0.1119764,63266.0,63265.0,0.079028]
[1727110625954,0.1910034,63266.0,63265.0,0.079028]
[1727110626349,0.158054,63266.0,63265.0,0.31660854]
[1727110627041,0.158054,63266.0,63265.0,0.18741518]
[1727110627241,0.158054,63266.0,63265.0,0.29014442]
[1727110627858,0.158054,63266.0,63265.0,0.29114442]
[1727110628047,0.079027,63266.0,63265.0,0.29114442]